bitfinex/quotes_ETHUSD_20260213
["timestamp","ask_amount","ask_price","bid_price","bid_amount"]
[1770965781613,0.002,1937.7,1937.4,8.34979831]
[1770965781821,0.002,1937.5,1937.4,8.34979831]
[1770965782112,0.002,1937.7,1937.4,8.34979831]
[1770965782113,0.002,1937.7,1937.4,1.75936325]
[1770965782894,0.002,1937.7,1937.5,7.05940913]
[1770965783701,0.002,1937.7,1937.5,9.17440913]
[1770965784020,0.002,1937.7,1937.6,1.29025598]
[1770965784400,0.002,1938.0,1937.7,0.46897407]
[1770965784808,0.002,1938.0,1937.8,0.46897407]
[1770965786096,0.002,1938.0,1937.9,1.29005624]
[1770965789201,0.002,1938.0,1937.9,1.75903031]
[1770965790426,0.002,1938.3,1937.9,1.75903031]
[1770965790427,0.002,1938.3,1938.0,0.46897407]
[1770965790630,1.40642263,1938.8,1938.2,7.07710347]
[1770965790930,0.47642263,1938.7,1938.2,6.59043506]
[1770965791320,0.93,1938.8,1938.5,0.48666841]
[1770965792219,0.93,1938.8,1938.6,1.28959042]
[1770965792737,1.733,1939.1,1938.7,6.59043506]
[1770965793720,0.47642263,1939.2,1938.7,6.59043506]
[1770965794235,0.47642263,1939.2,1938.8,1.28945739]
[1770965794721,0.47642263,1939.2,1938.6,2.131]
[1770965794924,0.48647315,1939.1,1938.6,3.42054847]
[1770965795954,0.48647315,1939.3,1938.7,0.467576]
[1770965796125,0.48647315,1939.3,1938.8,1.28945739]
[1770965796932,3.51447315,1939.5,1938.8,8.34746845]
[1770965797156,0.43614107,1940.1,1939.2,6.59043506]
[1770965797157,0.48647315,1939.9,1939.2,6.59043506]
[1770965797419,0.48647315,1939.9,1939.4,6.59043506]
[1770965797725,1.28863057,1940.1,1939.2,9.19201106]
[1770965797726,0.48647315,1940.0,1939.3,0.467576]
[1770965797927,0.48647315,1940.0,1939.2,6.59043506]
[1770965798228,7.07690821,1940.0,1939.2,3.8907044]
[1770965798533,0.48647315,1939.9,1939.2,10.01356346]
[1770965798737,0.48647315,1939.9,1939.2,7.87956346]
[1770965798936,0.48647315,1940.1,1939.3,0.467576]
[1770965800232,0.48647315,1940.0,1939.4,1.28905847]
[1770965802128,3.50947315,1940.2,1939.6,1.28892555]
[1770965802534,0.48647315,1940.2,1939.6,1.28892555]
[1770965802735,0.48647315,1940.1,1939.6,1.28892555]
[1770965803119,0.48647315,1940.1,1939.3,1.28907504]
[1770965803730,0.48647315,1940.1,1939.2,7.28963026]
[1770965803731,0.48647315,1940.1,1939.2,3.4221543]
[1770965803930,0.48647315,1939.9,1939.0,1.28932439]
[1770965804330,0.48647315,1939.7,1939.0,1.28932439]
[1770965804543,0.48647315,1939.7,1938.9,3.42133711]
[1770965804845,0.48647315,1939.7,1938.7,0.467576]
[1770965805026,0.48647315,1939.7,1938.6,1.28954046]
[1770965805232,0.48647315,1939.7,1938.5,2.21961557]
[1770965805438,0.48647315,1939.7,1938.6,0.467576]
[1770965806426,0.48647315,1939.5,1938.9,0.001]
[1770965806622,0.48647315,1939.3,1938.9,0.001]
[1770965807975,0.48647315,1939.4,1938.9,0.001]
[1770965809240,0.48647315,1939.3,1938.9,0.001]
[1770965810463,0.48647315,1939.1,1938.9,0.001]
[1770965810828,0.48647315,1939.3,1938.9,0.001]
[1770965813064,0.48647315,1939.1,1938.9,0.001]
[1770965813261,2.088,1939.4,1938.9,0.001]
[1770965813551,1.28905949,1939.4,1938.9,0.001]
[1770965813732,1.28895905,1939.6,1938.9,0.001]
[1770965813932,3.018,1939.5,1938.9,0.001]
[1770965814142,1.7754322,1939.6,1938.9,0.001]
[1770965814449,2.088,1939.5,1938.9,0.001]
[1770965814834,2.57447315,1939.5,1938.9,0.001]
[1770965815249,3.86349566,1939.5,1938.9,1.29039089]
[1770965815660,1.77549566,1939.5,1938.9,1.29039089]
[1770965815838,2.088,1939.4,1938.9,1.29039089]
[1770965816156,2.57447315,1939.4,1938.9,3.811]
[1770965816358,2.088,1939.4,1938.9,4.278576]
[1770965816557,2.088,1939.4,1939.0,4.277576]
[1770965817360,0.48647315,1939.8,1939.1,5.5668339]
[1770965817661,2.09,1939.8,1939.2,0.467576]
[1770965817850,2.09,1939.9,1939.2,0.467576]
[1770965819236,3.37872792,1939.9,1939.3,1.28912494]
[1770965819956,0.002,1939.4,1939.3,1.28912494]
[1770965820534,2.32378909,1940.1,1939.4,0.48742891]
[1770965820736,1.10984334,1940.0,1939.4,0.48742891]
[1770965820949,1.10984334,1939.9,1939.4,0.48742891]
[1770965821148,2.088,1940.0,1939.4,0.48742891]
[1770965821438,1.39378909,1940.1,1939.4,0.48742891]
[1770965821439,1.11007841,1939.9,1939.6,0.48742891]
[1770965821630,0.45222753,1940.0,1939.5,1.288992]
[1770965821830,2.089,1940.1,1939.5,1.288992]
[1770965822061,1.1100343,1940.0,1939.5,1.288992]
[1770965822265,2.089,1940.1,1939.5,1.288992]
[1770965822437,0.45222753,1939.9,1939.3,1.28908863]
[1770965822637,0.45222753,1939.9,1939.2,1.77658416]
[1770965823355,1.74099861,1939.9,1939.1,1.28922769]
[1770965823755,1.74099861,1939.9,1939.1,1.7766566]
[1770965824835,0.45222753,1939.8,1939.1,1.7766566]
[1770965825035,0.45222753,1939.8,1939.0,1.29027309]
[1770965825447,1.74108663,1939.7,1939.0,1.29027309]
[1770965825669,0.45222753,1939.6,1939.0,1.29027309]
[1770965826351,3.8300741,1939.8,1939.0,1.777702]
[1770965826867,0.45222753,1939.7,1939.0,0.001]
[1770965827043,1.56276569,1939.6,1939.0,0.001]
[1770965827240,0.45222753,1939.6,1939.0,0.001]
[1770965827862,1.74104406,1939.8,1939.0,0.001]
[1770965828038,2.089,1939.5,1939.0,0.48842891]
[1770965829156,0.45222753,1939.4,1939.0,0.001]
[1770965829674,3.13281859,1939.8,1939.0,0.001]
[1770965829839,4.48863219,1939.7,1939.0,1.7777533]
[1770965830168,1.11072022,1939.6,1939.0,1.7777533]
[1770965830845,1.56294775,1939.6,1939.0,0.001]
[1770965831041,1.56316381,1939.5,1939.0,0.001]
[1770965831240,0.45222753,1939.5,1939.0,0.001]
[1770965831845,3.38199436,1939.5,1939.0,0.001]
[1770965832665,2.093,1939.5,1939.0,0.001]
[1770965832866,1.74118478,1939.6,1939.0,0.001]
[1770965833051,3.20433728,1939.5,1939.0,0.001]
[1770965833248,2.093,1939.5,1939.0,0.001]
[1770965833572,2.093,1939.5,1939.1,0.001]
[1770965834067,1.28900766,1939.5,1939.1,0.001]
[1770965834272,2.093,1939.4,1939.1,0.001]
[1770965834868,0.45222753,1939.2,1939.1,0.001]
[1770965835048,1.56403327,1939.2,1939.1,0.001]
[1770965835257,1.56403327,1939.2,1938.8,0.001]
[1770965835465,0.45222753,1939.2,1938.8,0.001]
[1770965835968,4.50320095,1939.1,1938.8,0.001]
[1770965836171,3.39131449,1939.1,1938.8,0.001]
[1770965836649,3.84354202,1939.1,1938.8,0.001]
[1770965836972,1.563931,1939.0,1938.8,0.001]
[1770965837189,0.45222753,1939.0,1938.8,0.001]
[1770965837556,3.39131449,1939.1,1938.8,0.001]
[1770965837757,1.11164618,1939.0,1938.8,0.001]
[1770965838071,3.39131449,1939.1,1938.8,0.001]
[1770965838259,1.11162084,1939.0,1938.8,0.001]
[1770965838464,1.28931449,1939.1,1938.8,0.001]
[1770965838774,3.21545343,1939.0,1938.8,0.001]
[1770965838975,2.104,1939.0,1938.8,0.001]
[1770965839973,2.55622753,1939.0,1938.8,0.001]
[1770965840577,1.74161842,1938.9,1938.8,0.001]
[1770965841050,2.104,1939.0,1938.8,0.001]
[1770965841255,1.28926084,1939.1,1938.8,0.001]
[1770965841571,3.2180502,1939.0,1938.8,0.001]
[1770965841764,2.107,1939.0,1938.8,0.001]
[1770965843277,2.108,1938.9,1938.8,0.001]
[1770965844578,2.109,1938.9,1938.8,0.001]
[1770965846877,2.112,1938.9,1938.8,0.001]
[1770965847247,2.114,1938.9,1938.8,0.001]
[1770965847549,3.13311734,1939.4,1938.8,0.001]
[1770965847796,3.13311734,1939.4,1938.8,0.48842891]
[1770965847797,1.11023469,1939.3,1938.8,0.48842891]
[1770965847954,2.112,1939.4,1938.8,0.48842891]
[1770965848154,2.39949036,1939.3,1938.8,0.48842891]
[1770965848360,1.28916886,1939.3,1938.8,0.001]
[1770965848866,2.112,1939.2,1938.8,0.001]
[1770965849057,2.112,1939.2,1938.8,1.77788235]
[1770965849259,2.112,1939.2,1938.8,0.001]
[1770965849658,2.112,1939.2,1938.8,1.29042743]
[1770965849853,2.112,1939.2,1938.8,1.77785634]
[1770965850580,2.112,1939.2,1938.9,0.46083673]
[1770965850781,2.112,1939.2,1938.8,0.001]
[1770965850985,2.112,1939.2,1938.8,1.75128986]
[1770965851791,2.112,1939.2,1938.8,0.46183673]
[1770965852667,2.112,1939.2,1938.8,1.75129381]
[1770965852862,2.112,1939.2,1938.8,0.46183673]
[1770965853487,0.4594459,1939.1,1938.8,0.001]
[1770965855169,1.7487289,1939.1,1938.8,0.001]
[1770965855368,0.46588017,1939.0,1938.8,0.001]
[1770965856482,1.289283,1939.1,1938.8,0.001]
[1770965856667,1.11265226,1939.0,1938.8,0.001]
[1770965856868,2.112,1938.9,1938.8,0.001]
[1770965857270,2.113,1939.0,1938.8,0.001]
[1770965858690,2.113,1939.0,1938.7,4.30293485]
[1770965859294,2.113,1939.0,1938.9,0.001]
[1770965859496,2.115,1939.0,1938.9,0.001]
[1770965859717,1.39128985,1939.5,1939.0,0.49886709]
[1770965859875,2.114,1939.8,1939.0,0.49886709]
[1770965860194,1.11286123,1939.7,1939.0,0.49886709]
[1770965860383,2.114,1939.8,1939.2,0.49886709]
[1770965860583,2.114,1939.9,1939.2,0.49886709]
[1770965860988,2.111,1939.9,1939.2,0.49886709]
[1770965861190,2.111,1939.9,1939.4,0.49886709]
[1770965861396,6.08384658,1940.3,1939.4,0.49886709]
[1770965861397,1.28850624,1940.3,1939.4,0.49886709]
[1770965861697,0.46588017,1940.1,1939.3,1.28912494]
[1770965861872,0.46588017,1939.9,1939.2,1.78805579]
[1770965862572,0.46588017,1939.9,1939.2,1.7880467]
[1770965862768,0.46588017,1940.2,1939.3,0.49886709]
[1770965862974,0.46588017,1940.0,1939.2,1.28917961]
[1770965863193,0.46588017,1940.0,1939.1,3.91207451]
[1770965863394,0.46588017,1939.8,1939.1,3.91207451]
[1770965863709,1.28872622,1939.9,1939.2,0.49886709]
[1770965863882,1.75460639,1939.9,1939.2,0.49886709]
[1770965864321,0.46588017,1939.9,1939.2,0.49886709]
[1770965864994,2.107,1939.9,1939.2,0.49886709]
[1770965865312,3.39573605,1939.9,1939.3,1.28912494]
[1770965866020,3.39573605,1939.9,1939.2,1.78802864]
[1770965866718,3.86161622,1939.9,1939.2,1.78802864]
[1770965867014,3.86161622,1939.9,1939.2,0.49886709]
[1770965867512,3.86161622,1939.9,1939.2,1.78805572]
[1770965868296,0.46588017,1939.8,1939.1,3.41320612]
[1770965869605,1.75473555,1939.8,1939.1,3.91207321]
[1770965870621,0.46588017,1939.8,1939.2,0.49886709]
[1770965870920,2.107,1939.9,1939.2,0.49886709]
[1770965871422,3.85755341,1940.0,1939.2,0.49886709]
[1770965871622,3.85755341,1940.0,1939.3,1.78799203]
[1770965872118,0.002,1939.7,1939.3,1.78799203]
[1770965873933,0.46788017,1939.7,1939.1,3.41323017]
[1770965874220,0.002,1939.7,1939.1,3.91209726]
[1770965874602,0.002,1939.7,1939.2,3.81]
[1770965874799,0.46588017,1939.6,1939.2,3.81]
[1770965875920,1.288992,1939.5,1939.2,3.81]
[1770965876133,1.75487217,1939.5,1938.9,3.811]
[1770965876637,1.75487217,1939.5,1938.9,5.10038012]
[1770965876818,1.75487217,1939.5,1938.9,5.10038917]
[1770965877396,0.46588017,1939.4,1938.9,3.811]
[1770965878033,1.75497769,1939.4,1938.9,3.811]
[1770965878351,0.46588017,1939.3,1938.9,3.811]
[1770965878642,1.28909752,1939.4,1938.9,3.811]
[1770965878846,1.75497769,1939.4,1938.9,3.811]
[1770965880499,1.75497769,1939.4,1938.9,0.001]
[1770965880728,1.28903383,1939.5,1938.9,1.29037559]
[1770965880928,1.28903383,1939.5,1938.9,1.78569586]
[1770965881226,1.28903383,1939.5,1938.9,0.49632027]
[1770965881627,1.11039588,1939.4,1938.9,0.49632027]
[1770965881795,0.4851857,1939.4,1938.9,0.001]
[1770965881995,1.77431064,1939.3,1938.9,0.001]
[1770965882204,0.4851857,1939.2,1938.9,0.001]
[1770965882511,0.4851857,1939.2,1938.8,0.001]
[1770965883502,3.95052223,1939.6,1938.8,1.29044982]
[1770965883503,1.28908973,1939.4,1938.8,1.29044982]
[1770965883704,3.21131651,1939.3,1938.8,0.001]
[1770965883903,2.101,1939.3,1938.8,1.290443]
[1770965884141,2.101,1939.3,1939.0,0.001]
[1770965884320,3.39012568,1939.3,1939.0,0.001]
[1770965884640,2.101,1939.3,1939.0,0.001]
[1770965885448,1.77425395,1939.4,1939.0,0.001]
[1770965885737,1.11037262,1939.3,1939.0,0.001]
[1770965885946,1.77411125,1939.6,1939.0,0.001]
[1770965886102,4.50037506,1939.5,1939.0,0.001]
[1770965886443,1.11055565,1939.4,1939.0,0.001]
[1770965886598,3.39000656,1939.5,1939.0,0.001]
[1770965886802,1.11053264,1939.4,1939.0,0.001]
[1770965887102,3.39000656,1939.5,1939.0,0.001]
[1770965887304,1.11053213,1939.4,1939.0,0.001]
[1770965887610,3.39000656,1939.5,1939.0,0.001]
[1770965887808,1.11067601,1939.4,1939.0,0.001]
[1770965888028,3.39000656,1939.5,1939.0,0.001]
[1770965888247,1.11067608,1939.4,1939.0,0.001]
[1770965888445,3.39000656,1939.5,1939.0,0.001]
[1770965888646,1.11079752,1939.4,1939.0,0.001]
[1770965888844,3.39000656,1939.5,1939.0,0.001]
[1770965889023,1.11079773,1939.4,1939.0,0.001]
[1770965889231,0.002,1939.7,1939.0,0.49632027]
[1770965889429,2.104,1939.7,1939.0,0.49632027]
[1770965889632,3.39285923,1939.7,1939.0,0.49632027]
[1770965889849,1.11088848,1939.6,1939.0,0.49632027]
[1770965890160,2.104,1939.7,1939.1,1.2892579]
[1770965890364,3.39286061,1939.7,1939.1,1.78457817]
[1770965892756,3.87804631,1939.7,1939.1,0.49532027]
[1770965892957,1.11121201,1939.6,1939.1,1.28924837]
[1770965893158,3.39286916,1939.7,1939.2,0.49532027]
[1770965895138,2.104,1939.7,1939.2,0.49532027]
[1770965895756,3.3928616,1939.7,1939.2,0.49532027]
[1770965896460,3.3928616,1939.7,1939.0,1.78560204]
[1770965896629,1.59692301,1939.6,1939.0,1.78560204]
[1770965896828,0.4851857,1939.6,1939.0,1.78560204]
[1770965897029,0.002,1939.6,1939.0,1.78560204]
[1770965897827,0.002,1939.6,1939.1,0.49532027]
[1770965899447,0.002,1939.6,1939.3,0.49532027]
[1770965899765,0.002,1939.6,1939.2,1.28919141]
[1770965899952,0.002,1939.6,1939.2,1.78451168]
[1770965901754,0.002,1939.6,1939.3,0.49532027]
[1770965902154,0.002,1939.9,1939.5,0.49532027]
[1770965902954,1.77591323,1939.9,1939.3,0.49532027]
[1770965903139,1.59718506,1939.8,1939.1,1.78452968]
[1770965903331,1.11199936,1939.7,1939.1,1.78452968]
[1770965904434,1.11199936,1939.7,1939.2,0.49532027]
[1770965904775,2.88606249,1939.7,1939.0,1.78559571]
[1770965905071,1.11199936,1939.6,1939.0,1.78559571]
[1770965905231,1.59718506,1939.6,1939.0,1.78559571]
[1770965905435,0.4851857,1939.6,1939.0,1.78559571]
[1770965906047,3.86903094,1939.8,1939.0,1.78559571]
[1770965906248,1.11236241,1939.7,1939.0,1.78559571]
[1770965906568,1.11236241,1939.6,1939.0,1.78559571]
[1770965906769,3.86903094,1939.8,1939.0,1.78559571]
[1770965907077,1.11236328,1939.7,1939.0,1.78559571]
[1770965907297,1.11236328,1939.6,1939.0,1.78559571]
[1770965907572,3.86903094,1939.8,1939.0,1.78559571]
[1770965907777,1.1123648,1939.7,1939.0,1.78559571]
[1770965907981,1.1123648,1939.6,1939.0,1.78559571]
[1770965908142,3.86903094,1939.8,1939.0,1.78559571]
[1770965908343,1.11232534,1939.7,1939.0,1.78559571]
[1770965908565,1.11232534,1939.6,1939.0,1.78559571]
[1770965908771,3.38384524,1939.8,1939.0,1.78559571]
[1770965908975,1.59756978,1939.7,1939.0,1.78559571]
[1770965909249,1.11238408,1939.6,1939.1,0.001]
[1770965914988,0.46138456,1939.5,1939.1,0.001]
[1770965915376,1.1135932,1939.4,1939.1,0.001]
[1770965915580,0.46138456,1939.5,1939.1,0.001]
[1770965915886,1.57523304,1939.4,1939.1,0.001]
[1770965916067,0.46138456,1939.4,1939.1,0.001]
[1770965919368,8.32760527,1939.6,1939.1,0.001]
[1770965919567,1.11443945,1939.5,1939.1,0.001]
[1770965919777,1.11443945,1939.4,1939.1,0.001]
[1770965919977,8.43172265,1939.6,1939.1,0.001]
[1770965920178,1.1144391,1939.5,1939.1,0.001]
[1770965920360,1.1144391,1939.4,1939.1,7.05401032]
[1770965920565,2.098,1939.7,1939.1,7.05401032]
[1770965920566,3.49104906,1939.7,1939.1,7.05401032]
[1770965920760,1.11431728,1939.6,1939.1,7.05401032]
[1770965920971,1.11431728,1939.5,1939.1,7.05401032]
[1770965921171,1.11434749,1939.4,1939.2,1.28919141]
[1770965921373,1.85443362,1939.6,1939.1,1.29020666]
[1770965921573,1.11439827,1939.5,1939.1,0.001]
[1770965921776,1.85443362,1939.6,1939.1,0.001]
[1770965921777,1.11439827,1939.4,1939.1,0.001]
[1770965921977,1.85443362,1939.6,1939.1,0.001]
[1770965922178,1.11439313,1939.5,1939.2,0.001]
[1770965922390,1.11439313,1939.4,1939.2,0.001]
[1770965922570,1.85443362,1939.6,1939.2,0.001]
[1770965922770,1.11433565,1939.5,1939.2,0.001]
[1770965922981,1.11433565,1939.4,1939.2,0.001]
[1770965923187,0.46138456,1939.6,1939.2,0.001]
[1770965923468,1.11432751,1939.5,1939.2,0.001]
[1770965923788,3.95343362,1939.7,1939.2,0.001]
[1770965923994,1.11428101,1939.6,1939.2,0.001]
[1770965924180,1.11428101,1939.5,1939.2,0.001]
[1770965924368,1.85643362,1939.7,1939.2,0.001]
[1770965924694,1.11430413,1939.6,1939.2,0.001]
[1770965924891,1.11430413,1939.5,1939.2,0.001]
[1770965925070,1.85643362,1939.7,1939.2,0.001]
[1770965925265,1.11429623,1939.6,1939.2,0.001]
[1770965925488,0.46138456,1939.4,1939.2,0.001]
[1770965926090,9.25927319,1939.6,1939.2,0.001]
[1770965926289,1.11437465,1939.5,1939.2,0.001]
[1770965926601,9.72065775,1939.6,1939.2,0.001]
[1770965926602,1.11437465,1939.4,1939.2,0.001]
[1770965926896,3.49704906,1939.7,1939.2,0.001]
[1770965927083,1.1142755,1939.6,1939.2,0.001]
[1770965927298,1.1142755,1939.5,1939.2,0.001]
[1770965927480,5.24729521,1939.7,1939.2,0.001]
[1770965927682,1.11427919,1939.6,1939.2,0.001]
[1770965927871,1.11427919,1939.5,1939.2,0.001]
[1770965928566,1.57566375,1939.5,1939.2,0.001]
[1770965928903,1.57566375,1939.4,1939.2,0.001]
[1770965929070,0.46138456,1939.4,1939.2,0.001]
[1770965930391,1.75044874,1939.4,1939.2,0.001]
[1770965930573,1.85443362,1939.6,1939.2,0.001]
[1770965930897,1.57578393,1939.5,1939.2,0.001]
[1770965931194,1.11439937,1939.4,1939.2,0.001]
[1770965931366,1.11439937,1939.3,1939.2,0.001]
[1770965933424,1.39408456,1939.6,1939.3,0.47572129]
[1770965933599,0.002,1939.7,1939.4,6.57728903]
[1770965933803,0.002,1939.7,1939.3,0.47572129]
[1770965934302,0.002,1939.8,1939.6,8.34193587]
[1770965935507,0.002,1939.7,1939.6,8.34193587]
[1770965935711,0.002,1939.8,1939.6,1.76464684]
[1770965936281,0.002,1939.8,1939.6,8.34193587]
[1770965937593,2.111,1940.3,1939.7,0.47572129]
[1770965938002,3.50404906,1940.3,1939.7,0.47572129]
[1770965938210,3.50404906,1940.3,1939.8,7.05301032]
[1770965938398,3.50404906,1940.3,1939.9,1.28872622]
[1770965938712,1.39304906,1940.3,1939.9,1.28872622]
[1770965940106,2.111,1940.4,1940.0,0.47572129]
[1770965940710,2.111,1940.4,1940.1,1.28859337]
[1770965941316,2.111,1940.4,1940.0,0.47572129]
[1770965941518,2.111,1940.4,1939.9,1.28866226]
[1770965941729,2.111,1940.4,1939.9,1.77399134]
[1770965943500,0.49568254,1940.5,1939.9,1.77399134]
[1770965943803,2.112,1940.6,1940.0,7.06261811]
[1770965944015,2.111,1940.7,1940.1,0.48532908]
[1770965944414,0.49568254,1940.5,1939.8,1.28873106]
[1770965945129,0.49568254,1940.5,1939.8,1.77406014]
[1770965945302,0.49568254,1940.4,1939.8,1.77406014]
[1770965945705,0.49568254,1940.4,1939.6,2.13]
[1770965945706,0.49568254,1940.1,1939.6,7.2288879]
[1770965945905,0.49568254,1940.1,1939.6,1.2888879]
[1770965947031,0.49568254,1940.1,1939.5,5.09897989]
[1770965947343,0.49568254,1940.1,1939.5,5.58430897]
[1770965947516,0.49568254,1940.1,1939.5,5.09897989]
[1770965947724,0.49568254,1940.0,1939.5,5.09897989]
[1770965947919,0.49568254,1940.0,1939.3,3.811]
[1770965948134,0.49568254,1940.0,1939.3,5.10007151]
[1770965948803,0.49568254,1940.0,1939.3,1.29007151]
[1770965949430,0.49568254,1939.6,1939.3,0.001]
[1770965950019,0.49568254,1939.9,1939.3,0.001]
[1770965950221,6.57728903,1940.0,1939.3,7.06361811]
[1770965950434,7.00551133,1940.3,1939.3,7.06361811]
[1770965950435,2.111,1940.1,1939.6,0.48532908]
[1770965950731,1.78414323,1940.3,1939.6,0.48532908]
[1770965950932,2.112,1940.2,1939.6,7.05809803]
[1770965951136,0.002,1940.4,1939.8,6.57276895]
[1770965951434,2.114,1940.4,1939.8,7.05809803]
[1770965951610,2.114,1940.4,1939.9,1.28872622]
[1770965952011,0.002,1940.4,1939.9,1.7740553]
[1770965952843,0.002,1940.4,1939.9,1.28872622]
[1770965953059,0.49768254,1940.4,1939.9,1.28872622]
[1770965954149,0.002,1940.4,1939.8,5.64025348]
[1770965956240,0.002,1940.4,1939.9,0.48532908]
[1770965956438,0.002,1940.4,1939.8,5.1549244]
[1770965956608,0.49768254,1940.4,1939.8,1.28879265]
[1770965959517,1.78608067,1940.4,1939.8,1.28879265]
[1770965959733,0.49568254,1940.3,1939.7,1.28881704]
[1770965960941,0.002,1940.4,1939.7,1.77414612]
[1770965961126,0.49768254,1940.4,1939.9,0.001]
[1770965961326,1.78608276,1940.4,1939.9,0.001]
[1770965961728,0.49568254,1940.3,1939.9,0.001]
[1770965962945,1.78414524,1940.3,1939.9,0.001]
[1770965963434,0.49568254,1940.1,1939.9,0.001]
[1770965963636,1.11281369,1940.0,1939.9,0.001]
[1770965964350,1.11281369,1940.0,1939.3,4.35912399]
[1770965964351,0.49568254,1939.9,1939.3,4.35912399]
[1770965964753,0.49568254,1939.9,1939.3,3.43012399]
[1770965965055,0.49568254,1939.8,1939.3,0.001]
[1770965966128,0.49568254,1939.8,1939.3,1.29012122]
[1770965966551,0.49568254,1939.8,1939.3,0.001]
[1770965966920,0.49568254,1939.6,1939.3,0.001]
[1770965967118,1.28873299,1939.9,1939.3,0.001]
[1770965967119,0.49568254,1939.8,1939.3,0.001]
[1770965967524,1.7844867,1939.8,1939.3,0.001]
[1770965967717,0.49568254,1939.8,1939.3,0.001]
[1770965968149,2.107,1939.9,1939.3,0.001]
[1770965968446,1.11199815,1939.8,1939.3,0.001]
[1770965968647,3.89141452,1939.9,1939.3,0.001]
[1770965968846,1.11194133,1939.8,1939.3,0.001]
[1770965969050,3.89141452,1939.9,1939.3,0.001]
[1770965969221,1.11194167,1939.8,1939.3,0.001]
[1770965969541,3.89141452,1939.9,1939.3,0.001]
[1770965969748,1.1117042,1939.8,1939.3,0.001]
[1770965969917,3.89141452,1939.9,1939.3,0.001]
[1770965970120,1.11170446,1939.8,1939.3,0.48632908]
[1770965970319,2.107,1939.9,1939.3,0.48632908]
[1770965970519,1.56373254,1939.8,1939.3,0.001]
[1770965970724,0.45217917,1939.8,1939.3,0.001]
[1770965971132,1.74103827,1939.7,1939.3,0.001]
[1770965971340,0.45217917,1939.6,1939.3,0.001]
[1770965973864,1.74116141,1939.6,1939.4,0.001]
[1770965974237,0.45217917,1939.6,1939.4,0.001]
[1770965974741,1.74111021,1939.6,1939.4,0.001]
[1770965975264,0.45217917,1939.6,1939.4,0.001]
[1770965975641,1.28889578,1939.7,1939.4,0.001]
[1770965975840,2.11,1939.6,1939.4,0.001]
[1770965976763,1.76479426,1939.8,1939.4,0.001]
[1770965976937,2.112,1939.7,1939.4,0.001]
[1770965977265,1.7646111,1940.0,1939.4,0.001]
[1770965977467,3.87848194,1940.2,1939.4,0.48987492]
[1770965977639,1.11042733,1940.1,1939.4,0.48987492]
[1770965977965,3.87848194,1940.2,1939.4,1.77887145]
[1770965978141,0.47595091,1940.0,1939.4,0.001]
[1770965978340,1.58644057,1939.9,1939.4,0.001]
[1770965978540,0.47595091,1939.9,1939.4,0.001]
[1770965980250,1.76473302,1939.9,1939.4,0.001]
[1770965980948,1.58648554,1939.8,1939.4,0.001]
[1770965981150,0.47595091,1939.7,1939.4,0.001]
[1770965981372,1.28878211,1939.9,1939.4,0.001]
[1770965981373,0.47595091,1939.9,1939.4,0.001]
[1770965981878,2.11,1939.9,1939.4,0.001]
[1770965984650,2.11,1939.9,1939.4,1.29005847]
[1770965986561,0.47595091,1939.8,1939.4,0.001]
[1770965986766,1.76481001,1939.7,1939.4,0.001]
[1770965987385,0.47595091,1939.7,1939.5,0.001]
[1770965987583,0.47595091,1939.5,1939.2,0.001]
[1770965990191,1.76494331,1939.5,1939.2,0.001]
[1770965991373,0.47595091,1939.5,1939.2,0.001]
[1770965991557,8.16676243,1939.4,1939.1,0.001]
[1770965991874,3.40000158,1939.5,1939.1,0.001]
[1770965992063,1.11302661,1939.4,1939.1,0.001]
[1770965992264,1.11332603,1939.3,1939.1,0.001]
[1770965992473,3.40000158,1939.5,1939.1,0.001]
[1770965992695,1.11332586,1939.4,1939.1,0.001]
[1770965992880,1.11332586,1939.3,1939.1,0.001]
[1770965993077,2.114,1939.5,1939.1,0.48987492]
[1770965993264,1.11326284,1939.4,1939.1,0.48987492]
[1770965993463,2.114,1939.5,1939.1,0.48987492]
[1770965993791,1.11362999,1939.4,1939.1,0.48987492]
[1770965993999,2.114,1939.6,1939.1,0.48987492]
[1770965994162,1.11362645,1939.5,1939.1,0.48987492]
[1770965994363,1.11362645,1939.4,1939.1,1.77912981]
[1770965994585,11.84879115,1939.6,1939.1,0.001]
[1770965994780,1.11390548,1939.5,1939.1,0.001]
[1770965994981,1.11390548,1939.4,1939.1,1.29025407]
[1770965995174,11.84878889,1939.6,1939.1,0.001]
[1770965995380,1.11390998,1939.5,1939.1,0.001]
[1770965995687,1.11390998,1939.4,1939.1,0.001]
[1770965995892,11.84878889,1939.6,1939.1,0.001]
[1770965996091,1.11391118,1939.5,1939.1,0.001]
[1770965996294,1.11391118,1939.4,1939.1,0.001]
[1770965996476,11.84878889,1939.6,1939.1,0.001]
[1770965996675,1.1138857,1939.5,1939.1,0.001]
[1770965996892,1.1138857,1939.4,1939.1,0.001]
[1770965997099,10.55986198,1939.6,1939.1,0.001]
[1770965997268,1.11388595,1939.5,1939.1,0.001]
[1770965997468,1.11388595,1939.4,1939.1,0.001]
[1770965997668,10.55986198,1939.6,1939.1,0.001]
[1770965997869,1.11383646,1939.5,1939.1,0.001]
[1770965998074,1.11383646,1939.4,1939.1,0.001]
[1770965998276,1.11383646,1939.3,1939.1,0.001]
[1770965998697,11.84884706,1939.6,1939.1,0.001]
[1770965998995,1.11379246,1939.5,1939.1,0.001]
[1770965999191,1.11379246,1939.4,1939.1,0.001]
[1770965999491,11.84884706,1939.6,1939.1,0.48987492]
[1770965999492,2.114,1939.6,1939.1,0.48987492]
[1770965999700,1.11367698,1939.5,1939.1,0.001]
[1770965999893,1.11367698,1939.4,1939.1,0.001]
[1770966000095,2.114,1939.6,1939.1,0.001]
[1770966000309,1.11368607,1939.5,1939.1,3.811]
[1770966000595,2.118,1939.6,1939.3,1.74022544]
[1770966000921,1.10566718,1939.5,1939.4,0.4511005]